{"text_format":"3","workbook":"xlsx","n_sheets":2,"sheets":["Controlador de projeto","Configuração"],"not_rendered":{"defined_names":6},"read":"whole","date_system":"1900"}

{"sheet":"Controlador de projeto","index":0,"n_rows":13,"n_cols":15,"rows_kept":13}
[null,"Controlador de projeto"]
[null,null,"Sinalizador de Porcentagem Acima/Abaixo: ",{"v":0.25,"d":"25%"}]
[]
[null,"Projeto","Categoria","Atribuída a","Estimado\nInício","Estimado \nTérmino","Trabalho Estimado (em horas)","Duração Estimada (em dias)","Real \nInício","Real\nTérmino","Ícone de sinalizador para o trabalho real de acima/abaixo (em horas)","Trabalho Real (em horas)","Ícone de sinalizador para duração real acima/abaixo (em dias)","Duração Real (em dias)","Anotações"]
[null,"Projeto 1","Categoria 1","Funcionário 1",{"$f":"TODAY()-65","v":"2016-08-14"},{"$f":"TODAY()-5","v":"2016-10-13"},210,{"$f":"IF(COUNTA('Controlador de projeto'!$E5,'Controlador de projeto'!$F5)<>2,\"\",DAYS360('Controlador de projeto'!$E5,'Controlador de projeto'!$F5,FALSE))","v":59},{"$f":"TODAY()-65","v":"2016-08-14"},{"$f":"TODAY()","v":"2016-10-18"},{"$f":"IFERROR(IF(Controlador_de_projeto[Trabalho Real (em horas)]=0,\"\",IF(ABS((Controlador_de_projeto[[#This Row],[Trabalho Real (em horas)]]-Controlador_de_projeto[[#This Row],[Trabalho Estimado (em horas)]])/Controlador_de_projeto[[#This Row],[Trabalho Estimado (em horas)]])>FlagPercent,1,0)),\"\")","v":1},300,{"$f":"IFERROR(IF(Controlador_de_projeto[Duração Real (em dias)]=0,\"\",IF(ABS((Controlador_de_projeto[[#This Row],[Duração Real (em dias)]]-Controlador_de_projeto[[#This Row],[Duração Estimada (em dias)]])/Controlador_de_projeto[[#This Row],[Duração Estimada (em dias)]])>FlagPercent,1,0)),\"\")","v":0},{"$f":"IF(COUNTA('Controlador de projeto'!$I5,'Controlador de projeto'!$J5)<>2,\"\",DAYS360('Controlador de projeto'!$I5,'Controlador de projeto'!$J5,FALSE))","v":64}]
[null,"Projeto 2","Categoria 2","Funcionário 4",{"$f":"TODAY()-41","v":"2016-09-07"},{"$f":"TODAY()-10","v":"2016-10-08"},400,{"$f":"IF(COUNTA('Controlador de projeto'!$E6,'Controlador de projeto'!$F6)<>2,\"\",DAYS360('Controlador de projeto'!$E6,'Controlador de projeto'!$F6,FALSE))","v":31},{"$f":"TODAY()-41","v":"2016-09-07"},{"$f":"TODAY()-7","v":"2016-10-11"},{"$f":"IFERROR(IF(Controlador_de_projeto[Trabalho Real (em horas)]=0,\"\",IF(ABS((Controlador_de_projeto[[#This Row],[Trabalho Real (em horas)]]-Controlador_de_projeto[[#This Row],[Trabalho Estimado (em horas)]])/Controlador_de_projeto[[#This Row],[Trabalho Estimado (em horas)]])>FlagPercent,1,0)),\"\")","v":0},390,{"$f":"IFERROR(IF(Controlador_de_projeto[Duração Real (em dias)]=0,\"\",IF(ABS((Controlador_de_projeto[[#This Row],[Duração Real (em dias)]]-Controlador_de_projeto[[#This Row],[Duração Estimada (em dias)]])/Controlador_de_projeto[[#This Row],[Duração Estimada (em dias)]])>FlagPercent,1,0)),\"\")","v":0},{"$f":"IF(COUNTA('Controlador de projeto'!$I6,'Controlador de projeto'!$J6)<>2,\"\",DAYS360('Controlador de projeto'!$I6,'Controlador de projeto'!$J6,FALSE))","v":34}]
[null,"Projeto 3","Categoria 1","Funcionário 2",{"$f":"TODAY()-100","v":"2016-07-10"},{"$f":"TODAY()-40","v":"2016-09-08"},500,{"$f":"IF(COUNTA('Controlador de projeto'!$E7,'Controlador de projeto'!$F7)<>2,\"\",DAYS360('Controlador de projeto'!$E7,'Controlador de projeto'!$F7,FALSE))","v":58},{"$f":"TODAY()-100","v":"2016-07-10"},{"$f":"TODAY()-27","v":"2016-09-21"},{"$f":"IFERROR(IF(Controlador_de_projeto[Trabalho Real (em horas)]=0,\"\",IF(ABS((Controlador_de_projeto[[#This Row],[Trabalho Real (em horas)]]-Controlador_de_projeto[[#This Row],[Trabalho Estimado (em horas)]])/Controlador_de_projeto[[#This Row],[Trabalho Estimado (em horas)]])>FlagPercent,1,0)),\"\")","v":0},500,{"$f":"IFERROR(IF(Controlador_de_projeto[Duração Real (em dias)]=0,\"\",IF(ABS((Controlador_de_projeto[[#This Row],[Duração Real (em dias)]]-Controlador_de_projeto[[#This Row],[Duração Estimada (em dias)]])/Controlador_de_projeto[[#This Row],[Duração Estimada (em dias)]])>FlagPercent,1,0)),\"\")","v":0},{"$f":"IF(COUNTA('Controlador de projeto'!$I7,'Controlador de projeto'!$J7)<>2,\"\",DAYS360('Controlador de projeto'!$I7,'Controlador de projeto'!$J7,FALSE))","v":71}]
[null,"Projeto 4","Categoria 2","Funcionário 3",{"$f":"TODAY()-90","v":"2016-07-20"},{"$f":"TODAY()-80","v":"2016-07-30"},250,{"$f":"IF(COUNTA('Controlador de projeto'!$E8,'Controlador de projeto'!$F8)<>2,\"\",DAYS360('Controlador de projeto'!$E8,'Controlador de projeto'!$F8,FALSE))","v":10},{"$f":"TODAY()-90","v":"2016-07-20"},{"$f":"TODAY()-71","v":"2016-08-08"},{"$f":"IFERROR(IF(Controlador_de_projeto[Trabalho Real (em horas)]=0,\"\",IF(ABS((Controlador_de_projeto[[#This Row],[Trabalho Real (em horas)]]-Controlador_de_projeto[[#This Row],[Trabalho Estimado (em horas)]])/Controlador_de_projeto[[#This Row],[Trabalho Estimado (em horas)]])>FlagPercent,1,0)),\"\")","v":0},276,{"$f":"IFERROR(IF(Controlador_de_projeto[Duração Real (em dias)]=0,\"\",IF(ABS((Controlador_de_projeto[[#This Row],[Duração Real (em dias)]]-Controlador_de_projeto[[#This Row],[Duração Estimada (em dias)]])/Controlador_de_projeto[[#This Row],[Duração Estimada (em dias)]])>FlagPercent,1,0)),\"\")","v":1},{"$f":"IF(COUNTA('Controlador de projeto'!$I8,'Controlador de projeto'!$J8)<>2,\"\",DAYS360('Controlador de projeto'!$I8,'Controlador de projeto'!$J8,FALSE))","v":18}]
[null,"Projeto 5","Categoria 3","Funcionário 2",{"$f":"TODAY()-90","v":"2016-07-20"},{"$f":"TODAY()-50","v":"2016-08-29"},300,{"$f":"IF(COUNTA('Controlador de projeto'!$E9,'Controlador de projeto'!$F9)<>2,\"\",DAYS360('Controlador de projeto'!$E9,'Controlador de projeto'!$F9,FALSE))","v":39},{"$f":"TODAY()-90","v":"2016-07-20"},{"$f":"TODAY()-44","v":"2016-09-04"},{"$f":"IFERROR(IF(Controlador_de_projeto[Trabalho Real (em horas)]=0,\"\",IF(ABS((Controlador_de_projeto[[#This Row],[Trabalho Real (em horas)]]-Controlador_de_projeto[[#This Row],[Trabalho Estimado (em horas)]])/Controlador_de_projeto[[#This Row],[Trabalho Estimado (em horas)]])>FlagPercent,1,0)),\"\")","v":0},310,{"$f":"IFERROR(IF(Controlador_de_projeto[Duração Real (em dias)]=0,\"\",IF(ABS((Controlador_de_projeto[[#This Row],[Duração Real (em dias)]]-Controlador_de_projeto[[#This Row],[Duração Estimada (em dias)]])/Controlador_de_projeto[[#This Row],[Duração Estimada (em dias)]])>FlagPercent,1,0)),\"\")","v":0},{"$f":"IF(COUNTA('Controlador de projeto'!$I9,'Controlador de projeto'!$J9)<>2,\"\",DAYS360('Controlador de projeto'!$I9,'Controlador de projeto'!$J9,FALSE))","v":44}]
[null,"Projeto 6","Categoria 4","Funcionário 4",{"$f":"TODAY()-60","v":"2016-08-19"},{"$f":"TODAY()-50","v":"2016-08-29"},500,{"$f":"IF(COUNTA('Controlador de projeto'!$E10,'Controlador de projeto'!$F10)<>2,\"\",DAYS360('Controlador de projeto'!$E10,'Controlador de projeto'!$F10,FALSE))","v":10},{"$f":"TODAY()-60","v":"2016-08-19"},{"$f":"TODAY()-45","v":"2016-09-03"},{"$f":"IFERROR(IF(Controlador_de_projeto[Trabalho Real (em horas)]=0,\"\",IF(ABS((Controlador_de_projeto[[#This Row],[Trabalho Real (em horas)]]-Controlador_de_projeto[[#This Row],[Trabalho Estimado (em horas)]])/Controlador_de_projeto[[#This Row],[Trabalho Estimado (em horas)]])>FlagPercent,1,0)),\"\")","v":0},510,{"$f":"IFERROR(IF(Controlador_de_projeto[Duração Real (em dias)]=0,\"\",IF(ABS((Controlador_de_projeto[[#This Row],[Duração Real (em dias)]]-Controlador_de_projeto[[#This Row],[Duração Estimada (em dias)]])/Controlador_de_projeto[[#This Row],[Duração Estimada (em dias)]])>FlagPercent,1,0)),\"\")","v":1},{"$f":"IF(COUNTA('Controlador de projeto'!$I10,'Controlador de projeto'!$J10)<>2,\"\",DAYS360('Controlador de projeto'!$I10,'Controlador de projeto'!$J10,FALSE))","v":14}]
[null,"Projeto 7","Categoria 5","Funcionário 1",{"$f":"TODAY()-44","v":"2016-09-04"},{"$f":"TODAY()-20","v":"2016-09-28"},750,{"$f":"IF(COUNTA('Controlador de projeto'!$E11,'Controlador de projeto'!$F11)<>2,\"\",DAYS360('Controlador de projeto'!$E11,'Controlador de projeto'!$F11,FALSE))","v":24},{"$f":"TODAY()-44","v":"2016-09-04"},{"$f":"TODAY()-15","v":"2016-10-03"},{"$f":"IFERROR(IF(Controlador_de_projeto[Trabalho Real (em horas)]=0,\"\",IF(ABS((Controlador_de_projeto[[#This Row],[Trabalho Real (em horas)]]-Controlador_de_projeto[[#This Row],[Trabalho Estimado (em horas)]])/Controlador_de_projeto[[#This Row],[Trabalho Estimado (em horas)]])>FlagPercent,1,0)),\"\")","v":0},790,{"$f":"IFERROR(IF(Controlador_de_projeto[Duração Real (em dias)]=0,\"\",IF(ABS((Controlador_de_projeto[[#This Row],[Duração Real (em dias)]]-Controlador_de_projeto[[#This Row],[Duração Estimada (em dias)]])/Controlador_de_projeto[[#This Row],[Duração Estimada (em dias)]])>FlagPercent,1,0)),\"\")","v":0},{"$f":"IF(COUNTA('Controlador de projeto'!$I11,'Controlador de projeto'!$J11)<>2,\"\",DAYS360('Controlador de projeto'!$I11,'Controlador de projeto'!$J11,FALSE))","v":29}]
[null,"Projeto 8","Categoria 2","Funcionário 1",{"$f":"TODAY()-39","v":"2016-09-09"},{"$f":"TODAY()","v":"2016-10-18"},450,{"$f":"IF(COUNTA('Controlador de projeto'!$E12,'Controlador de projeto'!$F12)<>2,\"\",DAYS360('Controlador de projeto'!$E12,'Controlador de projeto'!$F12,FALSE))","v":39},{"$f":"TODAY()-45","v":"2016-09-03"},{"$f":"TODAY()-5","v":"2016-10-13"},{"$f":"IFERROR(IF(Controlador_de_projeto[Trabalho Real (em horas)]=0,\"\",IF(ABS((Controlador_de_projeto[[#This Row],[Trabalho Real (em horas)]]-Controlador_de_projeto[[#This Row],[Trabalho Estimado (em horas)]])/Controlador_de_projeto[[#This Row],[Trabalho Estimado (em horas)]])>FlagPercent,1,0)),\"\")","v":0},430,{"$f":"IFERROR(IF(Controlador_de_projeto[Duração Real (em dias)]=0,\"\",IF(ABS((Controlador_de_projeto[[#This Row],[Duração Real (em dias)]]-Controlador_de_projeto[[#This Row],[Duração Estimada (em dias)]])/Controlador_de_projeto[[#This Row],[Duração Estimada (em dias)]])>FlagPercent,1,0)),\"\")","v":0},{"$f":"IF(COUNTA('Controlador de projeto'!$I12,'Controlador de projeto'!$J12)<>2,\"\",DAYS360('Controlador de projeto'!$I12,'Controlador de projeto'!$J12,FALSE))","v":40}]
[null,"projeto 9","Categoria 4","Funcionário 1","2016-02-05","2016-06-09",250,{"$f":"IF(COUNTA('Controlador de projeto'!$E13,'Controlador de projeto'!$F13)<>2,\"\",DAYS360('Controlador de projeto'!$E13,'Controlador de projeto'!$F13,FALSE))","v":124},"2016-03-05","2016-05-05",{"$f":"IFERROR(IF(Controlador_de_projeto[Trabalho Real (em horas)]=0,\"\",IF(ABS((Controlador_de_projeto[[#This Row],[Trabalho Real (em horas)]]-Controlador_de_projeto[[#This Row],[Trabalho Estimado (em horas)]])/Controlador_de_projeto[[#This Row],[Trabalho Estimado (em horas)]])>FlagPercent,1,0)),\"\")","v":0},200,{"$f":"IFERROR(IF(Controlador_de_projeto[Duração Real (em dias)]=0,\"\",IF(ABS((Controlador_de_projeto[[#This Row],[Duração Real (em dias)]]-Controlador_de_projeto[[#This Row],[Duração Estimada (em dias)]])/Controlador_de_projeto[[#This Row],[Duração Estimada (em dias)]])>FlagPercent,1,0)),\"\")","v":1},{"$f":"IF(COUNTA('Controlador de projeto'!$I13,'Controlador de projeto'!$J13)<>2,\"\",DAYS360('Controlador de projeto'!$I13,'Controlador de projeto'!$J13,FALSE))","v":60}]

{"sheet":"Configuração","index":1,"n_rows":10,"n_cols":3,"rows_kept":10}
[null,"Configuração"]
[]
[]
[null,"Nome da Categoria","Nome do Funcionário"]
[null,"Categoria 1","Funcionário 1"]
[null,"Categoria 2","Funcionário 2"]
[null,"Categoria 3","Funcionário 3"]
[null,"Categoria 4","Funcionário 4"]
[null,"Categoria 5","Funcionário 5"]
[null,"Categoria 6","Funcionário 6"]